fUSD/lending_fUSD_20250123
["ID","MTS","AMOUNT","RATE_DAILY","PERIOD"]
[350155560,1737659450986,-500.0,0.00016986,2]
[350155561,1737659450995,-500.0,0.00016986,2]
[350155562,1737659451005,-500.0,0.00016986,2]
[350155563,1737659451015,-500.0,0.00016986,2]
[350155564,1737659451023,-500.0,0.00016986,2]
[350155565,1737659451033,-500.0,0.00016986,2]
[350155566,1737659451042,-500.0,0.00016986,2]
[350155567,1737659451051,-348.07363769,0.00016986,2]
[350155568,1737659451062,-291.54069642,0.00016986,2]
[350155569,1737659451071,-500.0,0.00016986,2]
[350155570,1737659451080,-500.0,0.00016986,2]
[350155571,1737659451090,-500.0,0.00016986,2]
[350155572,1737659451099,-500.0,0.00016986,2]
[350155573,1737659451108,-500.0,0.00016986,2]
[350155574,1737659451118,-236.29,0.00016986,2]
[350155575,1737659451127,-500.0,0.00016986,2]
[350155576,1737659451137,-500.0,0.00016986,2]
[350155577,1737659451147,-500.0,0.00016986,2]
[350155578,1737659451156,-500.0,0.00016986,2]
[350155579,1737659451165,-500.0,0.00016986,2]
[350155580,1737659451175,-500.0,0.00016986,2]
[350155581,1737659451184,-500.0,0.00016986,2]
[350155582,1737659451193,-438.28,0.00016986,2]
[350155583,1737659451202,-500.0,0.00016986,2]
[350155584,1737659451211,-500.0,0.00016986,2]
[350155585,1737659451220,-500.0,0.00016986,2]
[350155586,1737659451363,-500.0,0.00016986,2]
[350155587,1737659451374,-500.0,0.00016986,2]
[350155588,1737659451385,-500.0,0.00016986,2]
[350155589,1737659451395,-500.0,0.00016986,2]
[350155590,1737659451404,-500.0,0.00016986,2]
[350155591,1737659451414,-500.0,0.00016986,2]
[350155592,1737659451423,-500.0,0.00016986,2]
[350155593,1737659451432,-500.0,0.00016986,2]
[350155594,1737659451441,-500.0,0.00016986,2]
[350155595,1737659451450,-500.0,0.00016986,2]
[350155596,1737659451460,-500.0,0.00016986,2]
[350155597,1737659451469,-500.0,0.00016986,2]
[350155598,1737659451478,-500.0,0.00016986,2]
[350155599,1737659451487,-500.0,0.00016986,2]
[350155600,1737659451496,-500.0,0.00016986,2]
[350155601,1737659451506,-500.0,0.00016986,2]
[350155602,1737659451516,-500.0,0.00016986,2]
[350155603,1737659451525,-500.0,0.00016986,2]
[350155604,1737659451534,-500.0,0.00016986,2]
[350155605,1737659451544,-500.0,0.00016986,2]
[350155606,1737659451553,-500.0,0.00016986,2]
[350155607,1737659451562,-500.0,0.00016986,2]
[350155608,1737659451575,-500.0,0.00016986,2]
[350155609,1737659451585,-500.0,0.00016986,2]
[350155610,1737659451594,-500.0,0.00016986,2]
[350155611,1737659451604,-500.0,0.00016986,2]
[350155612,1737659451614,-500.0,0.00016986,2]
[350155613,1737659451623,-500.0,0.00016986,2]
[350155614,1737659451632,-500.0,0.00016986,2]
[350155615,1737659451641,-500.0,0.00016986,2]
[350155616,1737659451651,-500.0,0.00016986,2]
[350155617,1737659451661,-500.0,0.00016986,2]
[350155618,1737659451671,-500.0,0.00016986,2]
[350155619,1737659451681,-500.0,0.00016986,2]
[350155620,1737659451691,-500.0,0.00016986,2]
[350155621,1737659451703,-493.05670114,0.00016986,2]
[350155622,1737659451712,-500.0,0.00016986,2]
[350155623,1737659451722,-500.0,0.00016986,2]
[350155624,1737659451731,-500.0,0.00016986,2]
[350155625,1737659451740,-500.0,0.00016986,2]
[350155626,1737659451750,-500.0,0.00016986,2]
[350155627,1737659451761,-500.0,0.00016986,2]
[350155628,1737659451771,-500.0,0.00016986,2]
[350155629,1737659451780,-500.0,0.00016986,2]
[350155630,1737659451790,-500.0,0.00016986,2]
[350155631,1737659451800,-500.0,0.00016986,2]
[350155632,1737659451810,-500.0,0.00016986,2]
[350155633,1737659451820,-500.0,0.00016986,2]
[350155634,1737659451830,-500.0,0.00016986,2]
[350155635,1737659451840,-500.0,0.00016986,2]
[350155636,1737659451850,-500.0,0.00016986,2]
[350155637,1737659451859,-500.0,0.00016986,2]
[350155638,1737659451869,-500.0,0.00016986,2]
[350155639,1737659451878,-500.0,0.00016986,2]
[350155640,1737659451888,-500.0,0.00016986,2]
[350155641,1737659451897,-500.0,0.00016986,2]
[350155642,1737659451907,-313.40967722,0.00016986,2]
[350155643,1737659451916,-500.0,0.00016986,2]
[350155644,1737659451925,-254.08859811,0.00016986,2]
[350155645,1737659451934,-500.0,0.00016986,2]
[350155646,1737659451944,-500.0,0.00016986,2]
[350155647,1737659451953,-500.0,0.00016986,2]
[350155648,1737659451964,-500.0,0.00016986,2]
[350155649,1737659451974,-500.0,0.00016986,2]
[350155650,1737659451984,-500.0,0.00016986,2]
[350155651,1737659451993,-500.0,0.00016986,2]
[350155652,1737659452002,-450.04052846,0.00016986,2]
[350155653,1737659452013,-500.0,0.00016986,2]
[350155654,1737659452022,-500.0,0.00016986,2]
[350155655,1737659452031,-370.249633,0.00016986,2]
[350155656,1737659452041,-500.0,0.00016986,2]
[350155657,1737659452050,-500.0,0.00016986,2]
[350155658,1737659452060,-151.0,0.00016986,2]
[350155659,1737659452069,-500.0,0.00016986,2]
[350155660,1737659452078,-151.0,0.00016986,2]
[350155661,1737659452088,-500.0,0.00016986,2]
[350155662,1737659452097,-500.0,0.00016986,2]
[350155663,1737659452107,-500.0,0.00016986,2]
[350155664,1737659452118,-500.0,0.00016986,2]
[350155665,1737659452128,-500.0,0.00016986,2]
[350155666,1737659452137,-214.083149,0.00016986,2]
[350155667,1737659452147,-500.0,0.00016986,2]
[350155668,1737659452156,-151.0,0.00016986,2]
[350155669,1737659452166,-500.0,0.00016986,2]
[350155670,1737659452176,-500.0,0.00016986,2]
[350155671,1737659452185,-151.0,0.00016986,2]
[350155672,1737659452195,-500.0,0.00016986,2]
[350155673,1737659452204,-634.041024,0.00016986,2]
[350155674,1737659452214,-500.0,0.00016986,2]
[350155675,1737659452223,-634.041024,0.00016986,2]
[350155676,1737659452233,-500.0,0.00016986,2]
[350155677,1737659452242,-160.344778,0.00016986,2]
[350155678,1737659452251,-500.0,0.00016986,2]
[350155679,1737659452262,-160.344778,0.00016986,2]
[350155680,1737659452272,-500.0,0.00016986,2]
[350155681,1737659452281,-500.0,0.00016986,2]
[350155682,1737659452291,-500.0,0.00016986,2]
[350155683,1737659452301,-500.0,0.00016986,2]
[350155684,1737659452311,-500.0,0.00016986,2]
[350155685,1737659452320,-500.0,0.00016986,2]
[350155686,1737659452331,-500.0,0.00016986,2]
[350155687,1737659452344,-500.0,0.00016986,2]
[350155688,1737659452354,-500.0,0.00016986,2]
[350155689,1737659452363,-500.0,0.00016986,2]
[350155690,1737659452373,-500.0,0.00016986,2]
[350155691,1737659452384,-500.0,0.00016986,2]
[350155692,1737659452393,-500.0,0.00016986,2]
[350155693,1737659452403,-500.0,0.00016986,2]
[350155694,1737659452412,-500.0,0.00016986,2]
[350155695,1737659452422,-500.0,0.00016986,2]
[350155696,1737659452432,-500.0,0.00016986,2]
[350155697,1737659452441,-500.0,0.00016986,2]
[350155698,1737659452451,-500.0,0.00016986,2]
[350155699,1737659452460,-500.0,0.00016986,2]
[350155700,1737659452469,-500.0,0.00016986,2]
[350155701,1737659452479,-151.0,0.00016986,2]
[350155702,1737659452489,-500.0,0.00016986,2]
[350155703,1737659452498,-500.0,0.00016986,2]
[350155704,1737659452509,-151.0,0.00016986,2]
[350155705,1737659452519,-500.0,0.00016986,2]
[350155706,1737659452529,-500.0,0.00016986,2]
[350155707,1737659452539,-500.0,0.00016986,2]
[350155708,1737659452548,-500.0,0.00016986,2]
[350155709,1737659452559,-627.32444744,0.00016986,2]
[350155710,1737659452570,-500.0,0.00016986,2]
[350155711,1737659452580,-151.0,0.00016986,2]
[350155712,1737659452589,-610.92,0.00016986,2]
[350155713,1737659452598,-706.81,0.00016986,2]
[350155714,1737659452608,-500.0,0.00016986,2]
[350155715,1737659452618,-500.0,0.00016986,2]
[350155716,1737659452627,-1003.27,0.00016986,2]
[350155717,1737659452637,-151.0,0.00016986,2]
[350155718,1737659452647,-500.0,0.00016986,2]
[350155719,1737659452656,-625.99,0.00016986,2]
[350155720,1737659452665,-151.0,0.00016986,2]
[350155721,1737659452675,-570.26,0.00016986,2]
[350155722,1737659452684,-151.0,0.00016986,2]
[350155723,1737659452695,-374.5336695,0.00016986,2]
[350155724,1737659452705,-2144.07,0.00016986,2]
[350155725,1737659452715,-523.31,0.00016986,2]
[350155726,1737659452725,-576.57,0.00016986,2]
[350155727,1737659452734,-151.0,0.00016986,2]
[350155728,1737659452744,-941.99,0.00016986,2]
[350155729,1737659452756,-814.94,0.00016986,2]
[350155730,1737659452766,-151.0,0.00016986,2]
[350155731,1737659452776,-552.46,0.00016986,2]
[350155732,1737659452786,-151.0,0.00016986,2]
[350155733,1737659452796,-500.0,0.00016986,2]
[350155734,1737659452805,-151.0,0.00016986,2]
[350155735,1737659452815,-151.0,0.00016986,2]
[350155736,1737659452825,-1765.72,0.00016986,2]
[350155737,1737659452834,-438.962228,0.00016986,2]
[350155738,1737659452845,-151.0,0.00016986,2]
[350155739,1737659452855,-500.0,0.00016986,2]
[350155740,1737659452865,-1779.271711,0.00016986,2]
[350155741,1737659452874,-500.0,0.00016986,2]
[350155742,1737659452884,-1382.35,0.00016986,2]
[350155743,1737659452894,-303.79536902,0.00016986,2]
[350155744,1737659452904,-151.476641,0.00016986,2]
[350155745,1737659452913,-151.0,0.00016986,2]
[350155746,1737659452922,-500.0,0.00016986,2]
[350155747,1737659452932,-500.0,0.00016986,2]
[350155748,1737659452941,-764.07,0.00016986,2]
[350155749,1737659452951,-151.0,0.00016986,2]
[350155750,1737659452960,-663.09,0.00016986,2]
[350155751,1737659452970,-500.0,0.00016986,2]
[350155752,1737659452980,-500.0,0.00016986,2]
[350155753,1737659452990,-1685.96,0.00016986,2]
[350155754,1737659452999,-647.39,0.00016986,2]
[350155755,1737659453011,-400.491439,0.00016986,2]
[350155756,1737659453020,-784.74,0.00016986,2]
[350155757,1737659453031,-400.491439,0.00016986,2]
[350155758,1737659453040,-816.16,0.00016986,2]
[350155759,1737659453050,-500.0,0.00016986,2]
[350155760,1737659453060,-500.0,0.00016986,2]
[350155761,1737659453070,-500.0,0.00016986,2]
[350155762,1737659453079,-504.112179,0.00016986,2]
[350155763,1737659453091,-152.120307,0.00016986,2]
[350155764,1737659453100,-466.118015,0.00016986,2]
[350155765,1737659453109,-500.0,0.00016986,2]
[350155766,1737659453119,-500.0,0.00016986,2]
[350155767,1737659453129,-477.56350118,0.00016986,2]
[350155768,1737659453138,-2469.54,0.00016986,2]
[350155769,1737659453148,-500.0,0.00016986,2]
[350155770,1737659453157,-429.65489789,0.00016986,2]
[350155771,1737659453175,-319.01510211,0.00016986,2]
[350155772,1737659453185,-896.15,0.00016986,2]
[350155773,1737659453194,-993.46,0.00016986,2]
[350155774,1737659453203,-500.0,0.00016986,2]
[350155775,1737659453212,-857.28,0.00016986,2]
[350155776,1737659453222,-1315.43,0.00016986,2]
[350155777,1737659453231,-1046.73,0.00016986,2]
[350155778,1737659453241,-151.0,0.00016986,2]
[350155779,1737659453251,-645.04,0.00016986,2]
[350155780,1737659453261,-500.0,0.00016986,2]
[350155781,1737659453270,-1815.73,0.00016986,2]
[350155782,1737659453280,-151.0,0.00016986,2]
[350155783,1737659453289,-151.0,0.00016986,2]
[350155784,1737659453299,-500.0,0.00016986,2]
[350155785,1737659453310,-503.15,0.00016986,2]
[350155786,1737659453319,-862.15,0.00016986,2]
[350155787,1737659453330,-500.0,0.00016986,2]
[350155788,1737659453341,-500.0,0.00016986,2]
[350155789,1737659453352,-1898.25,0.00016986,2]
[350155790,1737659453362,-726.91,0.00016986,2]
[350155791,1737659453371,-151.0,0.00016986,2]
[350155792,1737659453381,-500.0,0.00016986,2]
[350155793,1737659453391,-500.0,0.00016986,2]
[350155794,1737659453400,-500.0,0.00016986,2]
[350155795,1737659453410,-151.0,0.00016986,2]
[350155796,1737659453423,-500.0,0.00016986,2]
[350155797,1737659453433,-907.74,0.00016986,2]
[350155798,1737659453443,-2176.53,0.00016986,2]
[350155799,1737659453452,-666.87,0.00016986,2]
[350155800,1737659453461,-905.1,0.00016986,2]
[350155801,1737659453471,-500.0,0.00016986,2]
[350155802,1737659453481,-500.0,0.00016986,2]
[350155803,1737659453490,-2308.47,0.00016986,2]
[350155804,1737659453499,-500.0,0.00016986,2]
[350155805,1737659453509,-500.0,0.00016986,2]
[350155806,1737659453519,-2228.58,0.00016986,2]
[350155807,1737659453528,-500.0,0.00016986,2]
[350155808,1737659453537,-151.0,0.00016986,2]
[350155809,1737659453549,-500.0,0.00016986,2]
[350155810,1737659453560,-438.19219978,0.00016986,2]
[350155811,1737659453570,-500.0,0.00016986,2]
[350155812,1737659453581,-500.0,0.00016986,2]
[350155813,1737659453590,-500.0,0.00016986,2]
[350155814,1737659453599,-901.95,0.00016986,2]
[350155815,1737659453609,-151.0,0.00016986,2]
[350155816,1737659453618,-500.0,0.00016986,2]
[350155817,1737659453628,-1916.0,0.00016986,2]
[350155818,1737659453639,-871.22,0.00016986,2]
[350155819,1737659453651,-151.0,0.00016986,2]
[350155820,1737659453662,-503.81445368,0.00016986,2]
[350155821,1737659453671,-500.0,0.00016986,2]
[350155822,1737659453681,-1589.5,0.00016986,2]
[350155823,1737659453691,-1591.14,0.00016986,2]
[350155824,1737659453700,-500.0,0.00016986,2]
[350155825,1737659453710,-500.0,0.00016986,2]
[350155826,1737659453719,-701.06,0.00016986,2]
[350155827,1737659453728,-726.08,0.00016986,2]
[350155828,1737659453738,-1735.27,0.00016986,2]
[350155829,1737659453748,-500.0,0.00016986,2]
[350155830,1737659453795,-151.0,0.00016986,2]
[350155831,1737659453805,-599.66770714,0.00016986,2]
[350155832,1737659453815,-500.0,0.00016986,2]
[350155833,1737659453825,-916.91,0.00016986,2]
[350155834,1737659453836,-500.0,0.00016986,2]
[350155835,1737659453845,-4027.0,0.00016986,2]
[350155836,1737659453854,-1282.02,0.00016986,2]
[350155837,1737659453864,-1895.9,0.00016986,2]
[350155838,1737659453873,-500.0,0.00016986,2]
[350155839,1737659453883,-500.0,0.00016986,2]
[350155840,1737659453893,-151.0,0.00016986,2]
[350155841,1737659453902,-500.0,0.00016986,2]
[350155842,1737659453912,-500.0,0.00016986,2]
[350155843,1737659453922,-1368.39,0.00016986,2]
[350155844,1737659453931,-500.0,0.00016986,2]
[350155845,1737659453941,-500.0,0.00016986,2]
[350155846,1737659453950,-500.0,0.00016986,2]
[350155847,1737659453960,-500.0,0.00016986,2]
[350155848,1737659453970,-3765.33,0.00016986,2]
[350155849,1737659453980,-500.0,0.00016986,2]
[350155850,1737659453989,-907.71,0.00016986,2]
[350155851,1737659453999,-500.0,0.00016986,2]
[350155852,1737659454012,-890.41,0.00016986,2]
[350155853,1737659454021,-500.0,0.00016986,2]
[350155854,1737659454030,-500.0,0.00016986,2]
[350155855,1737659454040,-804.17,0.00016986,2]
[350155856,1737659454049,-151.0,0.00016986,2]
[350155857,1737659454058,-717.06,0.00016986,2]
[350155858,1737659454067,-593.00090653,0.00016986,2]
[350155859,1737659454077,-1018.62,0.00016986,2]
[350155860,1737659454088,-151.0,0.00016986,2]
[350155861,1737659454097,-500.0,0.00016986,2]
[350155862,1737659454107,-1134.5,0.00016986,2]
[350155863,1737659454117,-500.0,0.00016986,2]
[350155864,1737659454126,-500.0,0.00016986,2]
[350155865,1737659454135,-500.0,0.00016986,2]
[350155866,1737659454144,-500.0,0.00016986,2]
[350155867,1737659454154,-1963.62,0.00016986,2]
[350155868,1737659454164,-618.37,0.00016986,2]
[350155869,1737659454173,-151.0,0.00016986,2]
[350155870,1737659454183,-500.0,0.00016986,2]
[350155871,1737659454192,-500.0,0.00016986,2]
[350155872,1737659454201,-500.0,0.00016986,2]
[350155873,1737659454211,-500.0,0.00016986,2]
[350155874,1737659454221,-500.0,0.00016986,2]
[350155875,1737659454232,-2352.22,0.00016986,2]
[350155876,1737659454242,-202.73546959,0.00016986,2]
[350155877,1737659454251,-500.0,0.00016986,2]
[350155878,1737659454266,-1719.23,0.00016986,2]
[350155879,1737659454276,-500.0,0.00016986,2]
[350155880,1737659454287,-152.108176,0.00016986,2]
[350155881,1737659454296,-500.0,0.00016986,2]
[350155882,1737659454306,-500.0,0.00016986,2]
[350155883,1737659454316,-222.118011,0.00016986,2]
[350155884,1737659454325,-222.118011,0.00016986,2]
[350155885,1737659454339,-500.0,0.00016986,2]
[350155886,1737659454349,-1152.72,0.00016986,2]
[350155887,1737659454358,-500.0,0.00016986,2]
[350155888,1737659454368,-663.45,0.00016986,2]
[350155889,1737659454379,-500.0,0.00016986,2]
[350155890,1737659454389,-500.0,0.00016986,2]
[350155891,1737659454399,-500.0,0.00016986,2]
[350155892,1737659454408,-151.0,0.00016986,2]
[350155893,1737659454419,-597.02,0.00016986,2]
[350155894,1737659454430,-604.98,0.00016986,2]
[350155895,1737659454440,-500.0,0.00016986,2]
[350155896,1737659454449,-500.0,0.00016986,2]
[350155897,1737659454459,-500.0,0.00016986,2]
[350155898,1737659454469,-2176.5,0.00016986,2]
[350155899,1737659454478,-500.0,0.00016986,2]
[350155900,1737659454489,-695.73,0.00016986,2]
[350155901,1737659454498,-3149.47,0.00016986,2]
[350155902,1737659454510,-500.0,0.00016986,2]
[350155903,1737659454521,-500.0,0.00016986,2]
[350155904,1737659454530,-1018.19,0.00016986,2]
[350155905,1737659454539,-500.0,0.00016986,2]
[350155906,1737659454549,-1436.45,0.00016986,2]
[350155907,1737659454558,-151.0,0.00016986,2]
[350155908,1737659454568,-500.0,0.00016986,2]
[350155909,1737659454577,-500.0,0.00016986,2]
[350155910,1737659454587,-663.6,0.00016986,2]
[350155911,1737659454597,-500.0,0.00016986,2]
[350155912,1737659454606,-906.61,0.00016986,2]
[350155913,1737659454616,-597.59743137,0.00016986,2]
[350155914,1737659454625,-749.0,0.00017,2]
[350155915,1737659454635,-32210.03915534,0.00017,2]
[350155916,1737659454645,-1642.76,0.00017,2]
[350155917,1737659454654,-600.0,0.00017,2]
[350155918,1737659454663,-164.139556,0.00017,2]
[350155919,1737659454673,-164.139556,0.00017,2]
[350155920,1737659454683,-151.0,0.00017,2]
[350155921,1737659454692,-151.0,0.00017,2]
[350155922,1737659454701,-481.765398,0.00017,2]
[350155923,1737659454711,-401.970784,0.00017,2]
[350155924,1737659454720,-401.970784,0.00017,2]
[350155925,1737659454731,-151.274673,0.00017,2]
[350155926,1737659454740,-151.0,0.00017,2]
[350155927,1737659454750,-151.0,0.00017,2]
[350155928,1737659454764,-151.0,0.00017,2]
[350155929,1737659454774,-151.0,0.00017,2]
[350155930,1737659454783,-151.0,0.00017,2]
[350155931,1737659454793,-151.0,0.00017,2]
[350155932,1737659454803,-151.0,0.00017,2]
[350155933,1737659454813,-587.384009,0.00017,2]
[350155934,1737659454823,-587.384009,0.00017,2]
[350155935,1737659454832,-151.0,0.00017,2]
[350155936,1737659454841,-151.0,0.00017,2]
[350155937,1737659454851,-151.0,0.00017,2]
[350155938,1737659454861,-259.689979,0.00017,2]
[350155939,1737659454870,-504.530978,0.00017,2]
[350155940,1737659454880,-504.530978,0.00017,2]
[350155941,1737659454891,-151.0,0.00017,2]
[350155942,1737659454901,-151.0,0.00017,2]
[350155943,1737659454910,-324.59,0.00017009,2]
[350155944,1737659454920,-3903.0,0.0001704,2]
[350155945,1737659454929,-172.467,0.0001704,2]
[350155946,1737659454938,-1176.0,0.0001704,2]
[350155947,1737659454947,-1106.0,0.0001704,2]
[350155948,1737659454957,-787.9463407,0.00017072,2]
[350155949,1737659454966,-1524.21129733,0.00017188,2]
[350155950,1737659454976,-1457.0,0.000172,3]
[350155951,1737659454985,-319.33,0.00017205,2]
[350155952,1737659454994,-787.9463407,0.00017245,2]
[350155953,1737659455004,-319.05962904,0.00017255,2]
[350155954,1737659455018,-151.0,0.00017257,2]
[350155955,1737659455027,-1020.76,0.00017259,2]
[350155956,1737659455036,-500.0,0.00017259,2]
[350155957,1737659455046,-871.79,0.00017259,2]
[350155958,1737659455057,-500.0,0.00017259,2]
[350155959,1737659455067,-1745.56,0.00017259,2]
[350155960,1737659455077,-3723.73,0.00017259,2]
[350155961,1737659455088,-742.21,0.00017259,2]
[350155962,1737659455098,-779.77,0.00017259,2]
[350155963,1737659455108,-725.66,0.00017259,2]
[350155964,1737659455118,-1457.19,0.00017259,2]
[350155965,1737659455127,-640.21136472,0.00017259,2]
[350155966,1737659455137,-678.42,0.00017259,2]
[350155967,1737659455147,-1002.67,0.00017259,2]
[350155968,1737659455156,-1122.55,0.00017259,2]
[350155969,1737659455166,-1000.0,0.00017259,2]
[350155970,1737659455176,-1033.73,0.00017259,2]
[350155971,1737659455185,-500.0,0.00017259,2]
[350155972,1737659455195,-1827.81,0.00017259,2]
[350155973,1737659455205,-1482.85,0.00017259,2]
[350155974,1737659455214,-151.282294,0.0001726,2]
[350155975,1737659455223,-151.0,0.0001726,2]
[350155976,1737659455233,-164.139556,0.0001726,2]
[350155977,1737659455243,-164.139556,0.0001726,2]
[350155978,1737659455253,-151.0,0.0001726,2]
[350155979,1737659455265,-151.0,0.0001726,2]
[350155980,1737659455275,-500.0,0.0001726,2]
[350155981,1737659455285,-481.765398,0.0001726,2]
[350155982,1737659455295,-276.05486945,0.0001726,2]
[350155983,1737659455305,-500.0,0.0001726,2]
[350155984,1737659455315,-500.0,0.0001726,2]
[350155985,1737659455325,-500.0,0.0001726,2]
[350155986,1737659455335,-401.970784,0.0001726,2]
[350155987,1737659455347,-401.970784,0.0001726,2]
[350155988,1737659455357,-500.0,0.0001726,2]
[350155989,1737659455366,-500.0,0.0001726,2]
[350155990,1737659455375,-500.0,0.0001726,2]
[350155991,1737659455385,-500.0,0.0001726,2]
[350155992,1737659455394,-500.0,0.0001726,2]
[350155993,1737659455404,-500.0,0.0001726,2]
[350155994,1737659455414,-500.0,0.0001726,2]
[350155995,1737659455425,-440.9,0.0001726,2]
[350155996,1737659455436,-151.0,0.0001726,2]
[350155997,1737659455445,-500.0,0.0001726,2]
[350155998,1737659455456,-151.0,0.0001726,2]
[350155999,1737659455466,-500.0,0.0001726,2]
[350156000,1737659455476,-282.67177,0.0001726,2]
[350156001,1737659455486,-239.475,0.0001726,2]
[350156002,1737659455496,-500.0,0.0001726,2]
[350156003,1737659455506,-151.0,0.0001726,2]
[350156004,1737659455519,-500.0,0.0001726,2]
[350156005,1737659455529,-276.42408,0.0001726,2]
[350156006,1737659455539,-500.0,0.0001726,2]
[350156007,1737659455548,-500.0,0.0001726,2]
[350156008,1737659455558,-587.384009,0.0001726,2]
[350156009,1737659455568,-500.0,0.0001726,2]
[350156010,1737659455578,-587.384009,0.0001726,2]
[350156011,1737659455588,-500.0,0.0001726,2]
[350156012,1737659455598,-151.0,0.0001726,2]
[350156013,1737659455608,-500.0,0.0001726,2]
[350156014,1737659455618,-500.0,0.0001726,2]
[350156015,1737659455628,-500.0,0.0001726,2]
[350156016,1737659455638,-500.0,0.0001726,2]
[350156017,1737659455648,-500.0,0.0001726,2]
[350156018,1737659455659,-500.0,0.0001726,2]
[350156019,1737659455668,-505.52310387,0.0001726,2]
[350156020,1737659455678,-500.0,0.0001726,2]
[350156021,1737659455688,-500.0,0.0001726,2]
[350156022,1737659455698,-279.83186144,0.0001726,2]
[350156023,1737659455707,-500.0,0.0001726,2]
[350156024,1737659455717,-500.0,0.0001726,2]
[350156025,1737659455727,-500.0,0.0001726,2]
[350156026,1737659455736,-500.0,0.0001726,2]
[350156027,1737659455745,-500.0,0.0001726,2]
[350156028,1737659455755,-500.0,0.0001726,2]
[350156029,1737659455768,-151.0,0.0001726,2]
[350156030,1737659455778,-463.10756491,0.0001726,2]
[350156031,1737659455788,-500.0,0.0001726,2]
[350156032,1737659455797,-500.0,0.0001726,2]
[350156033,1737659455807,-151.0,0.0001726,2]
[350156034,1737659455817,-337.08,0.0001726,2]
[350156035,1737659455827,-500.0,0.0001726,2]
[350156036,1737659455837,-500.0,0.0001726,2]
[350156037,1737659455846,-418.52673009,0.0001726,2]
[350156038,1737659455856,-500.0,0.0001726,2]
[350156039,1737659455865,-500.0,0.0001726,2]
[350156040,1737659455876,-500.0,0.0001726,2]
[350156041,1737659455886,-500.0,0.0001726,2]
[350156042,1737659455896,-500.0,0.0001726,2]
[350156043,1737659455906,-500.0,0.0001726,2]
[350156044,1737659455916,-500.0,0.0001726,2]
[350156045,1737659455926,-500.0,0.0001726,2]
[350156046,1737659455936,-552.043135,0.0001726,2]
[350156047,1737659455946,-504.530978,0.0001726,2]
[350156048,1737659455956,-500.0,0.0001726,2]
[350156049,1737659455966,-504.530978,0.0001726,2]
[350156050,1737659455976,-419.53850088,0.0001726,2]
[350156051,1737659455986,-500.0,0.0001726,2]
[350156052,1737659455996,-500.0,0.0001726,2]
[350156053,1737659456007,-151.0,0.0001726,2]
[350156054,1737659456019,-151.0,0.0001726,2]
[350156055,1737659456029,-500.0,0.0001726,2]
[350156056,1737659456038,-500.0,0.0001726,2]
[350156057,1737659456048,-500.0,0.0001726,2]
[350156058,1737659456058,-500.0,0.0001726,2]
[350156059,1737659456067,-500.0,0.0001726,2]